Cogmind - Beta 15 @@@ ROGUE MODE // 2025.06.29 @ 19:28:35 Player: Kaeinara Result: Destroyed by 84-88D(j) with Overtuned Pulse Rifle Performance ------------- Evolutions (0) 0 Regions Visited (4) 800 Robots Destroyed (12) 60 Value Destroyed (314) 314 Prototype IDs (7) 140 Alien Tech Used (0) 0 Bonus (816) 816 TOTAL SCORE: 2130 Bonus ------- Follower Combat Kills 32 Registered with UFD 300 Met Optimus in HQ 500 Friendly Fire -16 Cogmind --------- Core Integrity 0/250 Matter 300/300 Energy 170/170 System Corruption 0% Temperature Hot (209) Movement Walking (100) Location -8/Scraptown Parts ------- > --- POWER (1) -------- Makeshift Power Source > --- PROPULSION (2) --- Overtuned Titanium Leg > --- UTILITY (2) ------ Small Storage Unit > --- WEAPON (2) ------- (None) > --- INVENTORY (8) ---- Aluminum Leg Carbon-fiber Leg Carbon-fiber Leg Improved Heat Sink Improved EM Shotgun Datajack Peak State ------------ > --- POWER ------------ Makeshift Power Source > --- PROPULSION ------- Carbon-fiber Leg Carbon-fiber Leg > --- UTILITY ---------- Small Storage Unit Medium Reactive Plating > --- WEAPON ----------- Beamcaster Ripteeth > --- INVENTORY -------- Aluminum Leg Carbon-fiber Leg Carbon-fiber Leg Improved Heat Sink Improved EM Shotgun Datajack Large Botcube [Rating: 27] Favorites ----------- Power Makeshift Power Source Engine Makeshift Power Source Propulsion Carbon-fiber Leg Leg Carbon-fiber Leg Utility Small Storage Unit Device Tractor Beam Storage Small Storage Unit Protection Medium Reactive Plating Weapon Improved EM Shotgun Energy Gun Improved EM Shotgun Ballistic Gun Assault Rifle Slashing Weapon Ripteeth Build | -11 -10 -10 -10 -8 ------- Run | Yrd Mat Min Sub Scr Slots Evolved . | . . . . . Power . | . . . . . Propulsion . | . . . . . Utility . | . . . . . Weapon . | . . . . . Parts Attached 19 | 6 2 3 5 3 Power 3 | 1 . 2 . . Engine 3 | 1 . 2 . . Core . | . . . . . Reactor . | . . . . . Propulsion 7 | 2 . 1 3 1 Treads . | . . . . . Leg 7 | 2 . 1 3 1 Wheel . | . . . . . Hover . | . . . . . Flight . | . . . . . Utility 3 | 1 1 . . 1 Device 1 | . 1 . . . Storage 1 | 1 . . . . Processor . | . . . . . Hackware . | . . . . . Protection 1 | . . . . 1 Artifact . | . . . . . Weapon 6 | 2 1 . 2 1 Energy Gun 4 | 1 1 . 2 . Energy Cannon . | . . . . . Ballistic Gun 1 | 1 . . . . Ballistic Cannon . | . . . . . Launcher . | . . . . . Special Weapon . | . . . . . Impact Weapon . | . . . . . Slashing Weapon 1 | . . . . 1 Piercing Weapon . | . . . . . Special Melee Weapon . | . . . . . Unidentified Prototypes 1 | . 1 . . . Parts Lost 8 | . . 1 3 4 Power 1 | . . 1 . . Propulsion 1 | . . . . 1 Utility 2 | . . . 1 1 Weapon 4 | . . . 2 2 Highest Loss Streak 4 | . . 1 2 4 To Critical Strikes . | . . . . . Average Backups 6 | 2 3 7 7 7 Power . | . 1 . . . Propulsion 2 | . . . 2 3 Utility . | . . . 1 1 Weapon 2 | 1 2 5 3 2 Tool/Special . | . . . . . Unused Backups 8 | . . 1 . 7 Power . | . . . . . Propulsion 2 | . . . . 2 Utility 1 | . . . . 1 Weapon 4 | . . 1 . 3 Tool/Special 1 | . . . . 1 Average Slot Usage (%) 92 | . 93 99 89 91 Engine 13 | . 14 13 14 14 Leg 27 | . 28 28 28 27 Device 3 | . 7 14 4 . Storage 14 | . 14 14 14 14 Protection 3 | . . . . 6 Energy Gun 23 | . 14 14 22 27 Ballistic Gun 4 | . 14 14 4 . Peak Build Rating 27 | 6 10 13 20 27 Average Rating 17 | 3 6 10 17 22 On Entrance 9 | . 6 10 13 20 Naked Turns . | . . . . . Heaviest Build 37 | 14 16 16 17 37 Greatest Support 34 | 20 20 20 30 34 Greatest Overweight (x) 3 | 3 . . . 1 Average Overweight (x) . | . . . . . Largest Inventory Capacity 8 | 8 8 8 8 8 Average Capacity 7 | 7 8 8 8 8 Most Carried 8 | 6 8 8 8 8 Average Carried 7 | 3 3 7 7 7 Final Capacity 8 | 8 8 8 8 8 Final Carried 8 | 2 8 8 8 6 Class Distribution -------------------- 67% | Scavenger-Mutant 32% | Mutant Dominant Class ---------------- Mutant | -10/Materials Mutant | -10/Mines Scavenger-Mutant | -10/Subcaves Scavenger-Mutant | -8/Scraptown Resources | -11 -10 -10 -10 -8 ----------- Run | Yrd Mat Min Sub Scr Matter Collected 443 | 209 58 88 68 20 Remotely 184 | . 58 88 38 . Salvage Created 363 | . 73 165 125 . Parts 21 | . 7 6 8 . Haulers Intercepted . | . . . . . Recyclers Shooed 1 | . . 1 . . Parts Field Recycled . | . . . . . Retrieved Matter . | . . . . . Parts Self-Destructed 6 | . . . 6 . Prevented . | . . . . . Kills | -11 -10 -10 -10 -8 ------- Run | Yrd Mat Min Sub Scr Combat Hostiles Destroyed 11 | . 3 5 3 . Guns 11 | . 3 5 3 . Classes Destroyed 4 | . 2 1 1 . Operator 1 | . 1 . . . Swarmer 5 | . 3 2 . . Grunt 3 | . . 3 . . Subdweller 3 | . . . 3 . Best Kill Streak 3 | . 3 2 1 . Combat Bots Only 3 | . 3 2 1 . Max Kills in Single Turn 2 | . 2 1 1 . Gunslinging 1 | . 1 . . . Exploded . | . . . . . Melee . | . . . . . Uniques/NPCs Destroyed . | . . . . . Combat | -11 -10 -10 -10 -8 -------- Run | Yrd Mat Min Sub Scr Hostile Shots Fired 100 | . 7 24 36 33 Missed 30 | . 1 10 11 8 Hits 70 | . 6 14 25 25 Projectile 70 | . 6 14 25 25 Critical Strikes 7 | . . . 3 4 Damage Taken 1340 | . 50 224 592 474 Core 260 | . 26 31 98 105 Absorbed by Shields . | . . . . . Core Remaining (%) 100 | 100 . . . . Volleys Fired 40 | . 5 10 13 12 Largest 2 | . 2 2 2 2 Hottest 120 | . 60 65 120 120 Shots Fired 67 | . 10 20 22 15 Gun 67 | . 10 20 22 15 Cannon . | . . . . . Launcher . | . . . . . Special . | . . . . . Kinetic 21 | . 5 10 6 . Thermal 16 | . . . 4 12 Explosive . | . . . . . Electromagnetic 30 | . 5 10 12 3 Robot Hit Streak 4 | . 4 4 4 2 Robot Miss Streak 4 | . 2 3 4 3 Penetration Max . | . . . . . Secondary Targets 2 | . 1 1 . . Max Gunslinging Chain 1 | . 1 1 . . Shots Hit Robots 42 | . 5 14 15 8 Core Hits 19 | . 4 8 6 1 Critical Kills . | . . . . . Critical Parts Destroyed . | . . . . . Critical Strikes 3 | . . . 1 2 Burn 2 | . . . . 2 Destroy 1 | . . . 1 . Melee Attacks . | . . . . . Impact . | . . . . . Slashing . | . . . . . Piercing . | . . . . . Sneak Attacks . | . . . . . Combat Hostiles . | . . . . . Follow-up Attacks . | . . . . . Damage Inflicted 796 | . 65 369 211 151 Guns 618 | . 65 191 211 151 Cannons . | . . . . . Explosions 178 | . . 178 . . Melee . | . . . . . Ramming . | . . . . . Kinetic 129 | . 26 55 48 . Thermal 371 | . . 178 65 128 Explosive . | . . . . . Electromagnetic 296 | . 39 136 98 23 Impact . | . . . . . Slashing . | . . . . . Piercing . | . . . . . Highest Corruption . | . . . . . Average Corruption . | . . . . . Corruption Purged . | . . . . . Corruption Blocked . | . . . . . Overload Shots . | . . . . . Overflow Damage 16 | . . 16 . . Projectiles . | . . . . . Explosions 16 | . . 16 . . Melee . | . . . . . Knockbacks . | . . . . . Impact . | . . . . . Kinetic . | . . . . . Secondary . | . . . . . Self-Inflicted Damage 86 | . . 86 . . Shots 3 | . . 3 . . Rammed . | . . . . . Targets Rammed . | . . . . . Kicked . | . . . . . Crushed . | . . . . . Highest Temperature 362 | . . 55 61 362 Average Temperature 110 | . . 21 32 150 Received Heat Transfer 444 | . . 48 105 291 Effects 2 | . . . . 2 Shutdowns 1 | . . . . 1 Interference 1 | . . . . 1 Siege Activations . | . . . . . Martial Activations . | . . . . . Shielding Activations . | . . . . . Robots Disrupted . | . . . . . Combat Hostiles . | . . . . . Robots Corrupted . | . . . . . Combat Hostiles . | . . . . . Parts Fried . | . . . . . Impact Corruptions . | . . . . . Robots Melted . | . . . . . Combat Hostiles . | . . . . . Parts Melted 1 | . . . 1 . Heat Transferred 707 | . . 250 111 346 Parts Sabotaged . | . . . . . Parts Stolen . | . . . . . Parts Stripped . | . . . . . Power Chain Reactions 3 | . . 3 . . Alert | -11 -10 -10 -10 -8 ------- Run | Yrd Mat Min Sub Scr Maximum Alert Level . | . . . . . Low Security (%) 100 | 100 100 100 . . Level 1 . | . . . . . Level 2 . | . . . . . Level 3 . | . . . . . Level 4 . | . . . . . Level 5 . | . . . . . High Security . | . . . . . Max Security . | . . . . . Peak Influence 125 | . 70 125 . . Initial 3 | . . 3 . . Average 27 | . 19 40 . . Influence Increases 279 | . 84 195 . . Destroy 0b10 Robot/C 200 | . 60 140 . . Destroy 0b10 Robot/NC 5 | . 5 . . . Destroy Leader 40 | . 10 30 . . Allied During Kill 11 | . . 11 . . Successful Hack 8 | . 8 . . . Destroy Structure 15 | . 1 14 . . Influence Decreases 279 | . 76 118 85 . Entered New Map 50 | . . 5 45 . Time Decay 219 | . 76 103 40 . Lost Part 10 | . . 10 . . Squads Dispatched . | . . . . . Investigation . | . . . . . Extermination . | . . . . . Reinforcement . | . . . . . Assault . | . . . . . Garrison . | . . . . . Intercept . | . . . . . Searches Triggered . | . . . . . Construction Impeded . | . . . . . Haulers Reinforced . | . . . . . Active Scanning Responses . | . . . . . Cargo Convoy Interrupts . | . . . . . Stealth | -11 -10 -10 -10 -8 --------- Run | Yrd Mat Min Sub Scr Distress Signals . | . . . . . Communications Jammed . | . . . . . Distress Signals . | . . . . . Times Spotted 38 | . 5 7 12 14 Peak Tracking Total 8 | . 3 3 8 4 Tactical Retreats . | . . . . . Traps | -11 -10 -10 -10 -8 ------- Run | Yrd Mat Min Sub Scr Traps Triggered . | . . . . . Indirectly . | . . . . . Trap Hack Attempts . | . . . . . Triggered . | . . . . . Disarmed . | . . . . . Reprogrammed . | . . . . . Reused . | . . . . . Traps Extracted . | . . . . . Installed . | . . . . . Triggered . | . . . . . Machines | -11 -10 -10 -10 -8 ---------- Run | Yrd Mat Min Sub Scr Machines Disabled 1 | . . . . 1 Max in Single Turn 1 | . . . . 1 Machines Repaired . | . . . . . Machines Dismantled . | . . . . . Machines Sabotaged . | . . . . . Overloaded Fab Kills . | . . . . . Hacking | -11 -10 -10 -10 -8 --------- Run | Yrd Mat Min Sub Scr Machines Accessed 5 | . 2 . . 3 Terminals 2 | . 2 . . . Fabricators . | . . . . . Repair Stations . | . . . . . Recycling Units . | . . . . . Scanalyzers . | . . . . . Garrison Access . | . . . . . Total Hacks 28 | . 4 . . 24 Successful 25 | . 1 . . 24 Failed 3 | . 3 . . . Catastrophic 2 | . 2 . . . Database Lockouts . | . . . . . Manual 4 | . 4 . . . Terminals 4 | . 4 . . . Fabricators . | . . . . . Repair Stations . | . . . . . Recycling Units . | . . . . . Scanalyzers . | . . . . . Garrison Access . | . . . . . Terminal Hacks 25 | . 1 . . 24 Record 24 | . . . . 24 Branch Access Points 1 | . 1 . . . Fabricator Hacks . | . . . . . Repair Station Hacks . | . . . . . Recycling Unit Hacks . | . . . . . Scanalyzer . | . . . . . Garrison Access Hacks . | . . . . . Unauthorized Hacks . | . . . . . Terminals . | . . . . . Fabricators . | . . . . . Repair Stations . | . . . . . Recycling Units . | . . . . . Scanalyzers . | . . . . . Garrison Access . | . . . . . Data Cores Recovered 1 | . 1 . . . Used . | . . . . . Hacking Detections 2 | . 2 . . . Full Trace Events . | . . . . . Feedback Events . | . . . . . Feedback Blocked . | . . . . . Robot Schematics Acquired . | . . . . . Robots Built . | . . . . . Authchips . | . . . . . Time . | . . . . . Total Robot Build Rating . | . . . . . Part Schematics Acquired . | . . . . . Parts Built . | . . . . . Authchips . | . . . . . Time . | . . . . . Total Part Build Rating . | . . . . . Parts Repaired . | . . . . . Time . | . . . . . Parts Recycled . | . . . . . Recycled Matter . | . . . . . Retrieved Matter . | . . . . . Retrieved Components . | . . . . . Parts Scanalyzed . | . . . . . Part Schematics Acquired . | . . . . . Parts Damaged . | . . . . . Bothacking | -11 -10 -10 -10 -8 ------------ Run | Yrd Mat Min Sub Scr Used RIF Installer . | . . . . . Robots Hacked . | . . . . . Non-combat . | . . . . . Combat . | . . . . . Robot Hacks Applied . | . . . . . Relay Couplers Released . | . . . . . Fabnet Peak Effective % . | . . . . . Robots Rewired . | . . . . . Allies Hacked . | . . . . . Hacks Repelled . | . . . . . Allies | -11 -10 -10 -10 -8 -------- Run | Yrd Mat Min Sub Scr Total Allies 3 | . . 2 . 1 Largest Group 2 | . . 2 1 1 Highest-Rated Group 60 | . . 38 31 60 Highest-Rated Ally 60 | . . 31 31 60 Total Orders . | . . . . . Ally Attacks 7 | . . 6 1 . Total Damage 104 | . . 104 . . Kills 3 | . . 3 . . Allies Corrupted . | . . . . . Allies Melted 4 | . . . . 4 Intel | -11 -10 -10 -10 -8 ------- Run | Yrd Mat Min Sub Scr Active Infowar (turns) . | . . . . . Robot Analysis Total . | . . . . . Derelict Logs Recovered . | . . . . . Drone Launches . | . . . . . Drone Recoveries . | . . . . . Exploration | -11 -10 -10 -10 -8 ------------- Run | Yrd Mat Min Sub Scr Turns Passed 2410 | 56 279 309 345 1421 Spaces Moved 1613 | 34 173 207 242 957 Core 17 | 17 . . . . Treads . | . . . . . Legs 1596 | 17 173 207 242 957 Wheels . | . . . . . Hover . | . . . . . Flight . | . . . . . Fastest Speed 50 | 50 120 120 120 100 Average Speed 133 | 126 120 120 120 142 Slowest Speed 200 | 200 120 120 120 190 Overloaded Moves . | . . . . . Propulsion Burnouts . | . . . . . Robots Hopped . | . . . . . Potential Cave-ins . | . . . . . Cave-ins Triggered . | . . . . . Exploration Rate (%) 35 | 3 35 52 14 74 Regions Visited 4 Branch Regions 3 Pre-discovered Areas . | . . . . . Known Exits Taken 1 | . 1 . . . Unknown Exits Taken 3 | 1 . 1 1 . Scrap Searched 1 | . . . . 1 Spaces Dug . | . . . . . Terrain Destroyed 18 | . . 18 . . Melee . | . . . . . Projectile . | . . . . . AOE 18 | . . 18 . . Terrain Rammed . | . . . . . Walls Destroyed . | . . . . . Machines Disabled . | . . . . . Actions | -11 -10 -10 -10 -8 --------- Run | Yrd Mat Min Sub Scr Total 1805 | 47 234 249 276 999 Wait 103 | . 48 23 11 21 Move 1609 | 33 172 206 241 957 Hop . | . . . . . Pick Up 21 | 8 7 3 2 1 Fast Attach 3 | . . . 1 2 Attach 9 | 6 1 1 1 . Detach . | . . . . . Swap 7 | . 1 2 3 1 Drop 13 | . . 4 4 5 Fire 40 | . 5 10 13 12 Melee . | . . . . . Ram . | . . . . . Kick . | . . . . . Crush . | . . . . . Escape Stasis . | . . . . . Rewire . | . . . . . Trap . | . . . . . Miscellaneous . | . . . . . Route ------- -11/Scrapyard -10/Materials -10/Mines -10/Subcaves -8/Scraptown (discovered 2 exits: Fac x2) History --------- Turn | Location | Event 25 | -11/Scrapyard | Discovered new exit (range 14) 57 | -11/Scrapyard | Entered Materials 246 | -10/Materials | Identified exit to Mines 305 | -10/Materials | Build established: Mutant 336 | -10/Materials | Entered Mines 631 | -10/Mines | Discovered new exit (range 7) 645 | -10/Mines | Entered Subcaves 645 | -10/Subcaves | Accompanied by 1 ally 646 | -10/Subcaves | Approached by a straggling Scientist 650 | -10/Subcaves | Led the pair of lost Derelicts to an unsafe place 732 | -10/Subcaves | Ambushed by swarm of Subdwellers 737 | -10/Subcaves | Ambushed by Subdwellers from Twisted Machinery 757 | -10/Subcaves | Core integrity fell below 50% 814 | -10/Subcaves | A swath of the cavern ceiling suddenly collapsed 894 | -10/Subcaves | Disturbed a concealed Subdweller 985 | -10/Subcaves | Scientist uncovered a shortcut to Scraptown 990 | -10/Subcaves | Entered Scraptown 1038 | -8/Scraptown | Build established: Scavenger-Mutant 1138 | -8/Scraptown | Visited Cyclists 1170 | -8/Scraptown | Visited Bundlers 1208 | -8/Scraptown | Visited Cave Peace 1303 | -8/Scraptown | Heard Great Nut preacher, LISTEN AND RECITE! 1584 | -8/Scraptown | Visited Shadow of the Wyrm 1626 | -8/Scraptown | Visited UFD Registry 1626 | -8/Scraptown | Registered with UFD as "Wrenchflow" 1681 | -8/Scraptown | Visited DA-N13 Charitable Foundation 1742 | -8/Scraptown | Visited Junk Repository 1809 | -8/Scraptown | Visited Abandonware Association 1849 | -8/Scraptown | Learned abandonware demo "OVRCLOCK.EXE" 1887 | -8/Scraptown | Visited Botcube Research 1904 | -8/Scraptown | Found Lrg. Botcube 1946 | -8/Scraptown | Visited Infowarlord's Domain 1988 | -8/Scraptown | Visited Junk Cannon Lab 2087 | -8/Scraptown | Met Optimus 2087 | -8/Scraptown | Accepted into 0bPrime 2189 | -8/Scraptown | Visited Analyses Database 2298 | -8/Scraptown | Civil war broke out across Scraptown 2369 | -8/Scraptown | Lost 4 allies 2372 | -8/Scraptown | Identified exit to Factory 2377 | -8/Scraptown | Lrg. Botcube activated 2393 | -8/Scraptown | Lrg. Botcube completed mutation into legged form, armed with 1 gun. 2399 | -8/Scraptown | Core integrity fell below 20% 2411 | -8/Scraptown | Destroyed by 84-88D(j) with Overtuned Pulse Rifle Last Messages --------------- Optimus: You really should get out of here Wrenchflow. Scraptown is unimportant, the mission is important. Take the northeast exit, it's probably the safer route. Loading 2 Scraptown exits... 02376_ Dropped Lrg. Botcube. 02377_ Lrg. Botcube begins transforming into Large Mutated Botcube. 02388_ Med. Reactive Plating destroyed. 02389_ 9O-64O(j): "I'll admit this is sort of exciting." 02392_ Ripteeth destroyed. 02393_ Lrg. Botcube completes transformation. 02395_ Carbon-fiber Leg destroyed. 02399_ Critical hit (Burn: +50). 02399_ YC-EDY(p) suffers critical hit (Burn). 02401_ 9O-64O(j) destroyed. 02401_ Slug penetrates Reinforced Barrier. 02401_ Machine disabled. 02407_ Beamcaster destroyed. Map ----- +----------------------------------------------------+ | # ##???????## ###????????##### ########### ####### | | ??? #???????#"""" """"""""""" """"""" | | ? #???????#" | | #???????#" | | ? #???????#" | | ?? #???????#" | | ####???# #????####" | | ???????# #????""" """""""""""""""""" | | ???????# #????"""" """""""""""""""""" | | ???????# #????""" ""###### ######## | | ???????" #???#"""" ""# ##? | | ???????#%! #???#"""" ""# X"#? | | ???????#[! ! ###??""""% ""# "" "" ##? | | ???????# % *%[ "#"#"""" ""# "" "" X"#? | | ???????# ! """"#""" j ""# " " ### | | ???????# ""#######" "" "" | | ??????## ###?????#" = "" "" | | ??????#" ######### !%[ ""# " " ### | | ???????# E = ! %="# "" "" ""#? | | ?????#?# %! [ "# "" "" ##? | | ??#### # 3 [ * "# X"#? | | ??# " [% %/ !%[ ""# ##? | | ####"""" ![ TT = = ""###### ######## | | =%! TTM """""""""""""""""" | | = !% ! """"" "" """"""""" | | = @ !%p | | !%= [ | | = [ !% | | % #""""#" *! | | ==! [ #????#" | | !=%! %* #????#"""""" """"""""""" """"" | | ###"#"""""%#;# ""##????####### ########### ##### | | ????# !%!= # ###?????????? ???????"""""??? | | ????# ==*%% # #???????????""" "????? ??? | | ???#" ==! # #???????????""" """???? "?? | | ??? # !%* # #????????????!" ""???# " " "?? | | ????# ! " #?????????????" ?????# " "?? | | ????#" "" #?????????????" "????#?" " ?? | | ????## " " ## #?????????????""""??????? " ??? | | ?????# # # ## #??????????????""????????"""????? | | ?????######### #???????????????????????????????? | | ?????????????# #???????????????????????????????? | | ?????????????# #???????????????????????????????? | | ????????###### #???????????????????????????????? | | ??????"""""""" #???????????????????????????????? | | ?????""" """"" #???????????????????????????????? | | ???"""" " "" #???????????????????????????????? | | #???????????????????????????????? | | ???"" "" "" " #???????????????????????????????? | | ?????""""""""" #???????????????????????????????? | +----------------------------------------------------+ Best States ------------- Heat Dissipation 25 Energy Generation 15 Energy Capacity 250 Matter Stores 300 Matter Capacity 300 Sight Range 16 Terrain Scan Density 10 Armor Coverage 225 Resistance: KI 30 Evasion (%) 55 Item Schematics ----------------- None Robot Schematics ------------------ None Fabricated ------------ Nothing Repaired ---------- Nothing Alien Tech Used ----------------- None Achievements -------------- None Challenges ------------ None Game ------ Seed SupercompositeNullRipteeth Manual? 0 Play Time 00:33:15 Cumulative 31.7 hours Start 2025.06.29 @ 18:22:58 End 2025.06.29 @ 19:28:35 Sessions 1 Manual Loads 0 Difficulty Rogue Special Mode None Game No. 39 Rogue 39 Adventurer 0 Explorer 0 Win Type - Total 0 Types 0/0/0/0/0/0/0/0/0/0 Lore% 14 Gallery% 26 Achievement% 20 Wizard Run 0 Options --------- Layout 1 ASCII 0 Keyboard 0 Movement Mouse Keybinds 0 Fullscreen 1 Font 24/Smallcaps Map View 50x35 Zoom Use 0% Tactical HUD 1 Map Filters NONE Filters NONE Steam 1 RUN: 30c18dbd-e32f-4aea-abc5-09c97a7e8892